bitfinex-derivatives/quotes_SOLF0:USTF0_20260202
["timestamp","ask_amount","ask_price","bid_price","bid_amount"]
[1769999910025,31.52379363,101.27,101.19,162.94000182]
[1769999910537,31.52379363,101.27,101.17,162.96860182]
[1769999910538,31.5179167,101.26,101.17,162.96860182]
[1769999910733,31.5179167,101.26,101.17,24.44370182]
[1769999911432,31.5179167,101.25,101.17,138.5255]
[1769999911635,31.5179167,101.25,101.18,138.5067]
[1769999911835,31.5179167,101.25,101.18,162.95040182]
[1769999912334,31.54008268,101.28,101.2,138.4802]
[1769999912532,31.54008268,101.28,101.21,138.4703]
[1769999912731,332.78008268,101.31,101.22,146.24932135]
[1769999912937,31.54008268,101.31,101.23,138.4424]
[1769999913139,203.92008268,101.34,101.24,146.21882135]
[1769999913337,31.54008268,101.33,101.24,170.66252317]
[1769999914134,31.54008268,101.33,101.24,8.8984]
[1769999915239,31.53935494,101.31,101.22,483.83302317]
[1769999915439,31.53935494,101.31,101.22,320.93252135]
[1769999915839,40.43245494,101.31,101.23,8.8999]
[1769999916042,31.53935494,101.31,101.23,138.4414]
[1769999916242,31.53935494,101.31,101.23,162.88510182]
[1769999916741,31.53935494,101.31,101.25,8.898]
[1769999917144,31.53935494,101.31,101.22,459.38912135]
[1769999917534,40.43235494,101.31,101.23,8.8994]
[1769999917736,40.43235494,101.31,101.22,459.38912135]
[1769999919435,40.43235494,101.31,101.24,8.899]
[1769999919640,31.53935494,101.31,101.23,138.4425]
[1769999920740,31.54159917,101.29,101.21,138.4714]
[1769999921140,366.82,101.31,101.24,8.899]
[1769999921546,398.36159917,101.31,101.24,8.899]
[1769999921746,31.54841209,101.3,101.24,8.899]
[1769999922242,31.54841209,101.3,101.25,8.8981]
[1769999922451,31.54841209,101.3,101.22,146.24622135]
[1769999922642,40.44251209,101.3,101.22,7.79252135]
[1769999922838,31.54841209,101.3,101.24,8.899]
[1769999923247,240.08,101.32,101.25,8.8982]
[1769999923644,31.54841209,101.33,101.25,138.4149]
[1769999924141,31.54841209,101.33,101.26,146.19422135]
[1769999924337,31.5723196,101.36,101.28,146.16622135]
[1769999924541,31.5723196,101.36,101.29,8.8946]
[1769999925340,31.5723196,101.36,101.28,7.79252135]
[1769999925541,31.5723196,101.36,101.28,146.16752135]
[1769999925749,323.01531562,101.39,101.31,138.3347]
[1769999926146,31.57531562,101.39,101.31,138.3347]
[1769999926349,31.57531562,101.39,101.33,8.8909]
[1769999926952,31.57548897,101.42,101.34,8.8897]
[1769999927251,31.57548897,101.42,101.35,138.2799]
[1769999927549,31.57548897,101.42,101.36,8.8883]
[1769999927742,31.57548897,101.42,101.34,146.08262135]
[1769999927942,31.57548897,101.42,101.34,7.79252135]
[1769999928147,31.57548897,101.42,101.34,147.1779]
[1769999928348,31.57548897,101.42,101.34,146.08072135]
[1769999928551,31.57548897,101.42,101.34,7.79252135]
[1769999929053,31.57548897,101.42,101.34,16.68252135]
[1769999929253,31.57548897,101.42,101.34,146.08512135]
[1769999929750,31.57548897,101.42,101.33,147.1918]
[1769999930644,31.57548897,101.42,101.34,8.89]
[1769999931457,31.55564604,101.41,101.34,8.89]
[1769999931649,31.55564604,101.41,101.32,459.73122135]
[1769999931850,31.55564604,101.41,101.34,146.08382135]
[1769999932050,31.55564604,101.41,101.34,7.79252135]
[1769999932352,31.55564604,101.41,101.32,146.11122135]
[1769999933154,31.55410596,101.39,101.3,7.79252135]
[1769999933351,31.55410596,101.38,101.28,146.15762135]
[1769999933553,31.55410596,101.38,101.29,138.3616]
[1769999933955,31.55121002,101.37,101.3,8.8936]
[1769999934651,31.55121002,101.37,101.31,8.8927]
[1769999935055,405.97691002,101.4,101.3,146.13972135]
[1769999935257,31.55121002,101.38,101.3,146.13972135]
[1769999935855,31.55121002,101.38,101.29,138.3618]
[1769999935856,31.55668906,101.37,101.29,138.3618]
[1769999936054,31.55668906,101.37,101.3,146.13842135]
[1769999936250,31.55668906,101.4,101.32,8.8919]
[1769999937061,31.55668906,101.38,101.3,16.68562135]
[1769999937359,31.55668906,101.38,101.3,138.3438]
[1769999937567,31.55668906,101.38,101.3,146.13632135]
[1769999938157,31.55668906,101.38,101.32,8.8919]
[1769999938352,31.55668906,101.38,101.31,138.3274]
[1769999938756,40.44589402,101.4,101.31,138.3274]
[1769999939169,31.56009402,101.39,101.31,138.3274]
[1769999939359,31.56009402,101.38,101.31,8.8922]
[1769999939961,40.44689402,101.38,101.31,8.8922]
[1769999940259,31.56045818,101.37,101.31,8.8922]
[1769999940566,31.56045818,101.37,101.3,8.8937]
[1769999941265,31.56045818,101.37,101.31,8.8929]
[1769999941763,4.0,101.39,101.32,138.3181]
[1769999941957,35.55315661,101.39,101.31,138.3326]
[1769999942160,31.55315661,101.39,101.31,138.3326]
[1769999942360,278.99725661,101.42,101.33,138.307]
[1769999942564,31.55315661,101.41,101.33,138.307]
[1769999943159,31.55315661,101.41,101.32,146.11302135]
[1769999943366,31.55315661,101.4,101.32,146.11302135]
[1769999943567,31.55315661,101.4,101.3,146.13412135]
[1769999944674,31.55315661,101.4,101.32,8.8919]
[1769999945264,31.55315661,101.4,101.32,146.11202135]
[1769999945872,31.55315661,101.4,101.33,138.3061]
[1769999946569,31.52877614,101.43,101.36,138.2639]
[1769999946769,31.52877614,101.43,101.36,146.05642135]
[1769999947165,31.52877614,101.43,101.36,154.94412135]
[1769999947364,31.52877614,101.43,101.36,146.05642135]
[1769999948066,31.51962308,101.46,101.39,138.2254]
[1769999948267,31.51962308,101.48,101.4,146.00022135]
[1769999948471,31.51962308,101.48,101.42,8.8832]
[1769999948770,31.51962308,101.51,101.42,145.97402135]
[1769999948967,31.51962308,101.51,101.42,154.85662135]
[1769999949166,31.51962308,101.51,101.42,138.1843]
[1769999949366,31.51962308,101.51,101.42,145.97682135]
[1769999949870,31.51962308,101.51,101.41,138.1979]
[1769999950470,31.52086914,101.5,101.42,8.8831]
[1769999951469,31.52086914,101.49,101.42,8.8831]
[1769999951864,31.52086914,101.49,101.4,147.0923]
[1769999952267,31.52297468,101.48,101.4,8.8846]
[1769999952463,31.52297468,101.48,101.41,8.8839]
[1769999952864,31.52297468,101.48,101.42,138.1847]
[1769999953069,394.16297468,101.51,101.44,138.1537]
[1769999953264,394.16297468,101.51,101.43,145.94609577]
[1769999953467,394.16297468,101.51,101.44,8.8811]
[1769999953676,31.52297468,101.51,101.45,138.1407]
[1769999954070,31.52297468,101.51,101.44,138.1562]
[1769999954372,31.52297468,101.51,101.45,145.91879577]
[1769999955169,371.8329,101.54,101.47,8.8786]
[1769999955170,394.47746875,101.54,101.47,8.8786]
[1769999955367,31.51746875,101.53,101.47,8.8786]
[1769999955767,31.51746875,101.53,101.45,8.88]
[1769999956174,31.50835537,101.52,101.42,451.4392]
[1769999957278,40.38305537,101.52,101.43,8.8817]
[1769999957583,31.50835537,101.51,101.43,8.8817]
[1769999957878,48.16045114,101.51,101.41,147.0698]
[1769999958076,138.0519,101.52,101.42,138.1843]
[1769999958077,31.48512189,101.5,101.42,138.1843]
[1769999958580,31.48512189,101.5,101.43,8.8822]
[1769999958880,31.48512189,101.5,101.41,138.1983]
[1769999959081,31.48512189,101.5,101.4,451.4027]
[1769999959280,31.48512189,101.49,101.41,8.8839]
[1769999959682,40.36242189,101.49,101.41,8.8839]
[1769999959878,31.48250837,101.48,101.42,8.8831]
[1769999960082,362.3,101.5,101.42,138.1847]
[1769999960380,393.78250837,101.5,101.42,138.1847]
[1769999961283,31.48250837,101.5,101.43,8.8822]
[1769999962382,31.48390997,101.49,101.41,8.8839]
[1769999962578,31.48390997,101.48,101.41,8.8839]
[1769999962772,31.48390997,101.48,101.4,138.2113]
[1769999963182,31.48390997,101.48,101.4,147.0956]
[1769999963984,31.48390997,101.48,101.41,8.8841]
[1769999965880,31.48014286,101.47,101.39,138.2157]
[1769999966183,31.48014286,101.47,101.37,146.01939577]
[1769999967081,40.35954286,101.47,101.4,8.8849]
[1769999967276,31.48014286,101.46,101.4,8.8849]
[1769999968481,31.47578853,101.48,101.41,8.8841]
[1769999969884,362.2,101.49,101.42,138.1831]
[1769999970183,31.4722178,101.51,101.42,138.1831]
[1769999970774,31.4722178,101.5,101.42,138.1831]
[1769999971986,31.47348184,101.49,101.43,8.8824]
[1769999972787,31.47348184,101.48,101.41,9.873]
[1769999973178,31.47348184,101.48,101.43,8.8824]
[1769999973485,402.55058184,101.5,101.43,8.8824]
[1769999973889,31.45102624,101.49,101.43,8.8824]
[1769999974093,31.45102624,101.51,101.42,145.96119577]
[1769999974385,31.45102624,101.51,101.43,138.1705]
[1769999974584,31.45102624,101.54,101.47,8.8788]
[1769999975089,31.45102624,101.54,101.45,138.1411]
[1769999975291,31.45102624,101.53,101.45,138.1411]
[1769999975983,31.45102624,101.53,101.45,147.021]
[1769999976189,31.45102624,101.53,101.44,145.93389577]
[1769999977180,31.45102624,101.53,101.47,8.8788]
[1769999977989,31.45102624,101.53,101.48,8.8779]
[1769999978190,31.44342914,101.55,101.47,138.1163]
[1769999978585,40.31342914,101.58,101.49,138.0894]
[1769999978884,31.44342914,101.58,101.51,138.0616]
[1769999979084,31.44342914,101.61,101.55,8.8714]
[1769999979304,31.44342914,101.61,101.54,138.0173]
[1769999979305,31.44342914,101.61,101.52,145.82469577]
[1769999979687,31.44342914,101.61,101.54,8.8725]
[1769999980595,31.44342914,101.61,101.52,8.874]
[1769999980794,31.44291578,101.59,101.5,145.84829577]
[1769999981484,31.44291578,101.59,101.51,8.8752]
[1769999982391,31.44452002,101.58,101.51,8.8752]
[1769999983193,31.44452002,101.58,101.52,138.048]
[1769999984296,31.44452002,101.58,101.53,8.8735]
[1769999985396,31.44452002,101.58,101.52,138.0483]
[1769999985798,31.44452002,101.58,101.51,138.0608]
[1769999986297,392.749218,101.6,101.52,138.0465]
[1769999987400,392.749218,101.6,101.54,8.8726]
[1769999987899,31.389218,101.6,101.54,8.8726]
[1769999988500,31.389218,101.6,101.52,8.8738]
[1769999988702,31.38795555,101.59,101.52,8.8738]
[1769999988995,31.38795555,101.58,101.5,8.8756]
[1769999989302,31.38795555,101.56,101.47,138.1051]
[1769999989601,31.38795555,101.55,101.46,138.118]
[1769999989998,31.38795555,101.55,101.47,138.116]
[1769999990700,31.38795555,101.55,101.46,138.118]
[1769999991302,31.38795555,101.55,101.47,138.1154]
[1769999992301,31.38795555,101.55,101.49,8.877]
[1769999993705,31.38795555,101.55,101.5,8.8762]
[1769999993899,31.40139336,101.57,101.5,8.8762]
[1769999994205,31.40139336,101.57,101.5,145.84779577]
[1769999994402,371.40139336,101.6,101.52,138.0416]
[1769999995000,371.40139336,101.6,101.52,145.81809577]
[1769999995498,31.40139336,101.59,101.51,138.062]
[1769999996201,31.40139336,101.59,101.54,8.8727]
[1769999996605,31.37707574,101.62,101.54,138.0209]
[1769999997508,31.37707574,101.62,101.55,8.8718]
[1769999997896,31.36331691,101.61,101.55,8.8718]
[1770000000403,31.36544885,101.6,101.53,8.8728]
[1770000000600,31.36544885,101.6,101.51,138.062]
[1770000000799,31.36544885,101.58,101.48,145.86719577]
[1770000001003,31.36544885,101.58,101.5,8.8759]
[1770000001611,31.36544885,101.58,101.47,147.9772]
[1770000001612,31.36825908,101.56,101.47,147.9772]
[1770000001903,31.36825908,101.55,101.46,138.1187]
[1770000002506,39.14475485,101.57,101.48,138.1029]
[1770000002710,31.36825908,101.57,101.49,138.089]
[1770000002917,31.36825908,101.57,101.51,138.062]
[1770000003106,31.36825908,101.6,101.53,138.0347]
[1770000003307,394.54825908,101.63,101.54,145.79699577]
[1770000003515,31.36825908,101.62,101.54,145.79699577]
[1770000004216,31.36900816,101.61,101.54,8.8722]
[1770000004724,31.36900816,101.59,101.51,8.875]
[1770000005014,31.36900816,101.61,101.52,138.0473]
[1770000005217,31.36900816,101.61,101.53,138.0334]
[1770000006111,31.36900816,101.61,101.55,8.8716]
[1770000006316,31.36548464,101.64,101.55,138.0073]
[1770000006709,31.36548464,101.64,101.57,8.8701]
[1770000007514,31.36548464,101.64,101.55,138.0073]
[1770000007714,8.8651,101.63,101.54,145.79639577]
[1770000007917,31.36172067,101.62,101.53,138.0342]
[1770000008615,31.36172067,101.62,101.55,138.0078]
[1770000009319,31.36172067,101.62,101.57,8.87]
[1770000010116,31.36174212,101.64,101.57,8.87]
[1770000010522,31.36174212,101.64,101.57,137.9764]
[1770000010720,31.36174212,101.64,101.56,145.77059577]
[1770000011820,31.36174212,101.64,101.58,8.8691]
[1770000012121,362.86,101.65,101.58,137.9662]
[1770000012521,394.21907624,101.65,101.59,8.8682]
[1770000013516,31.35907624,101.68,101.59,137.9527]
[1770000013724,31.35907624,101.68,101.59,145.70186153]
[1770000014018,31.38405175,101.65,101.57,146.8495]
[1770000014216,31.38405175,101.65,101.57,8.8695]
[1770000014722,31.38405175,101.63,101.55,8.8712]
[1770000015022,31.38405175,101.6,101.5,138.0637]
[1770000015215,40.25255175,101.59,101.51,8.8748]
[1770000015623,31.38405175,101.59,101.52,8.8744]
[1770000015832,31.38405175,101.59,101.52,138.0456]
[1770000016020,31.38381999,101.62,101.53,138.0348]
[1770000016423,31.38381999,101.62,101.55,8.8718]
[1770000017228,337.68,101.63,101.54,138.0202]
[1770000017429,137.8711,101.66,101.56,137.9914]
[1770000017430,40.24721999,101.65,101.56,137.9914]
[1770000017623,31.38381999,101.65,101.57,137.9779]
[1770000017823,31.38165294,101.67,101.6,8.8675]
[1770000018023,31.38165294,101.67,101.6,137.9389]
[1770000018426,31.38165294,101.67,101.62,8.8657]
[1770000018822,349.84165294,101.7,101.62,8.8657]
[1770000019128,145.43966153,101.79,101.68,137.8308]
[1770000019323,363.52,101.78,101.68,137.8308]
[1770000019524,510.0686,101.78,101.67,145.59086153]
[1770000019720,510.0686,101.78,101.63,889.74280182]
[1770000019721,137.7386,101.75,101.64,137.8821]
[1770000019920,509.36776153,101.75,101.64,137.8821]
[1770000020225,283.28776153,101.73,101.62,137.9005]
[1770000020426,7.74916153,101.71,101.61,137.9208]
[1770000020724,363.92,101.72,101.64,137.8833]
[1770000021026,23.62354104,101.74,101.66,137.8581]
[1770000021523,161.36417028,101.73,101.63,145.64776153]
[1770000021723,23.59807028,101.71,101.61,145.66406153]
[1770000021927,23.59807028,101.7,101.61,146.7813]
[1770000022326,23.59807028,101.7,101.62,146.7774]
[1770000022827,23.59807028,101.7,101.6,146.7961]
[1770000023027,23.59807028,101.7,101.61,137.9261]
[1770000023330,23.59807028,101.7,101.63,137.8987]
[1770000023829,23.59807028,101.7,101.63,8.8642]
[1770000024023,23.59807028,101.7,101.63,146.7615]
[1770000024729,23.59807028,101.7,101.64,8.8638]
[1770000024931,23.59807028,101.7,101.61,145.67526153]
[1770000025131,23.59807028,101.7,101.61,137.9261]
[1770000025533,23.60120152,101.69,101.6,137.9291]
[1770000025729,23.60120152,101.69,101.61,137.9254]
[1770000026030,23.61398919,101.68,101.58,137.9567]
[1770000026234,23.61398919,101.66,101.57,137.9698]
[1770000026424,23.61398919,101.66,101.58,137.9656]
[1770000026830,23.61398919,101.66,101.56,137.9846]
[1770000027536,387.55398919,101.66,101.57,137.9795]
[1770000027736,23.61975717,101.65,101.57,137.9795]
[1770000028034,23.61975717,101.65,101.56,137.9846]
[1770000028035,23.61975717,101.65,101.56,146.8552]
[1770000028535,23.61975717,101.65,101.56,8.8706]
[1770000028925,32.48315717,101.65,101.56,146.8645]
[1770000029135,32.48315717,101.65,101.57,8.87]
[1770000029435,32.48425717,101.64,101.54,452.8983]
[1770000029628,23.61975717,101.63,101.53,145.77446153]
[1770000030026,23.61975717,101.63,101.55,276.0019]
[1770000030229,23.64273066,101.65,101.57,137.9796]
[1770000030430,363.94,101.66,101.59,137.9528]
[1770000030938,23.64273066,101.65,101.56,137.9869]
[1770000031232,23.64273066,101.65,101.58,137.9669]
[1770000031432,363.94,101.66,101.59,137.9533]
[1770000031931,387.56303124,101.66,101.59,137.9532]
[1770000032942,23.62303124,101.66,101.59,137.9532]
[1770000033239,388.24303124,101.69,101.61,137.9247]
[1770000033442,388.24303124,101.69,101.59,145.70236153]
[1770000033443,23.62303124,101.68,101.59,145.70236153]
[1770000033636,23.62303124,101.68,101.61,8.8664]
[1770000034844,23.60708809,101.67,101.59,8.8678]
[1770000035141,23.60708809,101.67,101.59,145.70196153]
[1770000035742,388.1848945,101.69,101.61,137.9255]
[1770000036344,388.1848945,101.69,101.62,137.9123]
[1770000036838,388.1848945,101.69,101.61,145.67466153]
[1770000037040,388.1848945,101.69,101.61,170.11836335]
[1770000037239,388.1848945,101.69,101.63,8.8646]
[1770000038043,388.1848945,101.69,101.6,162.38280182]
[1770000038044,23.55821826,101.68,101.6,137.9391]
[1770000038244,23.55821826,101.68,101.61,137.9228]
[1770000038948,23.55821826,101.68,101.62,8.8656]
[1770000041943,23.55821826,101.68,101.6,171.24980182]
[1770000042155,23.55821826,101.68,101.6,137.9372]
[1770000042847,23.55821826,101.68,101.62,8.8657]
[1770000043150,23.55821826,101.68,101.61,137.9262]
[1770000044149,23.55821826,101.68,101.61,162.36990182]
[1770000045044,364.62,101.69,101.62,137.9125]
[1770000045246,23.6084805,101.71,101.63,137.8942]
[1770000045844,367.96,101.73,101.65,137.8717]
[1770000046049,391.57067605,101.73,101.65,137.8717]
[1770000046250,23.61067605,101.72,101.63,162.33790182]
[1770000046853,32.46867927,101.71,101.64,8.8639]
[1770000047052,23.61067927,101.7,101.6,162.37110182]
[1770000047251,23.61067927,101.69,101.61,24.44370182]
[1770000047445,32.47297927,101.66,101.58,162.39900182]
[1770000047742,23.62323536,101.65,101.56,24.44370182]
[1770000047950,23.62323536,101.65,101.55,162.44250182]
[1770000048149,23.62323536,101.65,101.57,137.979]
[1770000048451,23.62323536,101.65,101.58,137.9628]
[1770000048651,23.62323536,101.65,101.6,8.8675]
[1770000048851,367.84,101.66,101.6,137.9381]
[1770000049144,23.62323536,101.68,101.59,162.39500182]
[1770000049554,23.62323536,101.68,101.61,8.8666]
[1770000050550,23.63294016,101.67,101.6,137.9387]
[1770000050750,23.63294016,101.67,101.6,162.38240182]
[1770000051250,23.63294016,101.67,101.59,170.14476335]
[1770000051446,23.63294016,101.67,101.6,24.44370182]
[1770000052748,23.63294016,101.67,101.59,162.39640182]
[1770000053150,23.63294016,101.67,101.6,24.44370182]
[1770000053451,23.63294016,101.67,101.6,33.31120182]
[1770000053946,23.62834695,101.66,101.6,8.8675]
[1770000054951,23.62834695,101.66,101.61,8.8666]
[1770000055151,23.62834695,101.66,101.59,24.44370182]
[1770000055951,23.62834695,101.66,101.58,33.31220182]
[1770000056350,23.62834695,101.66,101.59,24.44370182]
[1770000056547,23.62834695,101.66,101.6,24.44370182]
[1770000056945,23.63397528,101.68,101.6,162.38290182]
[1770000057352,23.63397528,101.68,101.6,24.44370182]
[1770000058252,23.63397528,101.68,101.61,8.8666]
[1770000059956,32.49447528,101.68,101.61,8.8666]
[1770000060254,23.63998535,101.65,101.58,24.44370182]
[1770000060454,23.63998535,101.64,101.56,24.44370182]
[1770000060856,23.63998535,101.64,101.57,24.44370182]
[1770000061254,23.63998535,101.63,101.57,8.8701]
[1770000061655,23.63998535,101.63,101.57,33.31380182]
[1770000061855,23.64340526,101.61,101.55,33.31520182]
[1770000062358,23.64340526,101.63,101.57,8.8701]
[1770000063155,23.64340526,101.62,101.55,33.31490182]
[1770000063357,31.39256679,101.62,101.55,33.31490182]
[1770000063559,23.64340526,101.61,101.55,33.31490182]
[1770000063758,23.64047206,101.6,101.53,33.30037415]
[1770000063960,11.41862115,101.59,101.53,8.8729]
[1770000064258,11.41862115,101.57,101.51,8.8748]
[1770000064459,11.41862115,101.57,101.5,454.8036]
[1770000064460,11.41862115,101.57,101.5,138.0739]
[1770000064859,11.41862115,101.57,101.52,8.8745]
[1770000065060,11.41862115,101.57,101.48,176.08897359]
[1770000065357,11.41862115,101.57,101.48,138.0946]
[1770000065662,11.40054806,101.55,101.46,138.1175]
[1770000065856,11.40054806,101.55,101.47,138.1166]
[1770000066055,524.52010959,101.58,101.48,138.1029]
[1770000066255,378.80054806,101.58,101.5,138.0757]
[1770000066461,11.40054806,101.58,101.5,138.0757]
[1770000066863,11.40054806,101.58,101.51,8.8747]
[1770000067057,11.40054806,101.58,101.49,7.74916153]
[1770000067258,11.40054806,101.57,101.47,145.85876153]
[1770000068366,11.38441852,101.56,101.49,8.8769]
[1770000068565,11.38441852,101.57,101.49,138.088]
[1770000069061,11.38441852,101.57,101.51,8.8753]
[1770000069362,15.38441852,101.59,101.51,138.0615]
[1770000070360,11.38867233,101.58,101.52,8.8743]
[1770000070565,11.38867233,101.58,101.5,138.0754]
[1770000071261,11.38867233,101.58,101.51,138.0615]
[1770000071661,11.38867233,101.58,101.52,8.8744]
[1770000071856,11.38867233,101.58,101.49,462.81716153]
[1770000072457,4.0,101.59,101.49,462.81716153]
[1770000072458,11.38935825,101.57,101.49,316.98]
[1770000072666,11.38935825,101.57,101.48,7.76302842]
[1770000072867,11.38935825,101.57,101.48,145.86342842]
[1770000073171,11.38935825,101.56,101.49,8.877]
[1770000073671,20.26045825,101.56,101.49,8.877]
[1770000074164,11.38935825,101.56,101.49,8.877]
[1770000075174,11.38935825,101.56,101.48,145.86362842]
[1770000075371,11.38935825,101.56,101.47,138.113]
[1770000075671,11.38935825,101.56,101.46,463.38292842]
[1770000075868,11.38935825,101.56,101.48,8.8777]
[1770000077276,11.39218052,101.53,101.45,138.1334]
[1770000078070,11.38848357,101.52,101.46,8.8794]
[1770000078376,11.38848357,101.52,101.44,387.30106371]
[1770000078377,11.38848357,101.52,101.44,379.53803529]
[1770000078776,20.26398357,101.51,101.44,379.53803529]
[1770000079071,11.38848357,101.5,101.4,145.96292842]
[1770000079266,11.38848357,101.5,101.42,145.94682842]
[1770000080173,11.38848357,101.5,101.45,8.8806]
[1770000080371,11.38097848,101.52,101.44,145.91962842]
[1770000080570,11.38097848,101.52,101.45,138.14]
[1770000081077,11.38097848,101.52,101.44,145.91962842]
[1770000081371,11.38097848,101.52,101.44,7.76302842]
[1770000081577,11.38097848,101.52,101.43,317.62]
[1770000081979,11.38097848,101.52,101.42,145.94682842]
[1770000082179,11.38097848,101.52,101.44,145.91842842]
[1770000083281,11.3608973,101.51,101.44,8.881]
[1770000083476,11.3608973,101.51,101.43,138.1701]
[1770000083876,11.35739752,101.53,101.45,138.1434]
[1770000084985,11.35739752,101.52,101.44,145.91692842]
[1770000085181,11.35739752,101.52,101.44,138.1539]
[1770000085684,11.33909573,101.51,101.45,8.8806]
[1770000086482,20.21449573,101.51,101.43,138.1701]
[1770000086983,11.33909573,101.51,101.43,138.1701]
[1770000087282,11.33909573,101.51,101.42,145.94682842]
[1770000087684,11.33795646,101.48,101.42,8.8829]
[1770000088283,11.33795646,101.48,101.4,147.0856]
[1770000088284,11.33795646,101.47,101.4,147.0856]
[1770000088494,11.33795646,101.47,101.39,138.2136]
[1770000088690,11.33795646,101.47,101.37,318.2]
[1770000088691,11.33795646,101.47,101.37,456.4525]
[1770000088891,20.21775646,101.46,101.37,456.4525]
[1770000089291,11.33795646,101.46,101.38,138.2386]
[1770000090192,11.3282489,101.45,101.37,456.4525]
[1770000090491,11.3282489,101.45,101.35,138.2695]
[1770000090896,11.3282489,101.45,101.36,138.2662]
[1770000091295,11.3282489,101.45,101.35,138.2695]
[1770000091496,11.3282489,101.44,101.35,138.2695]
[1770000091895,20.2097489,101.44,101.37,8.8875]
[1770000092993,11.33020187,101.43,101.37,8.8875]
[1770000093792,20.21260187,101.43,101.36,8.8885]
[1770000094096,11.32281893,101.42,101.33,138.2962]
[1770000094291,11.32281893,101.42,101.35,138.2797]
[1770000094495,11.32281893,101.42,101.36,138.2657]
[1770000094692,11.32281893,101.44,101.36,138.2657]
[1770000095398,11.32281893,101.44,101.37,8.8873]
[1770000095898,11.31394886,101.46,101.39,8.8858]
[1770000096098,11.31394886,101.46,101.37,138.2525]
[1770000096701,11.31394886,101.44,101.36,138.2657]
[1770000097194,11.31394886,101.44,101.35,138.2797]
[1770000097910,11.31333219,101.42,101.33,138.3063]
[1770000098499,11.31333219,101.4,101.31,138.3234]
[1770000098798,11.31333219,101.38,101.29,138.36]
[1770000099001,11.31333219,101.37,101.3,8.893]
[1770000099196,362.88,101.37,101.28,138.3677]
[1770000099405,11.31333219,101.36,101.28,138.3677]
[1770000100500,11.31333219,101.36,101.29,8.8945]
[1770000101797,11.31333219,101.36,101.3,8.8934]
[1770000103698,11.31586935,101.39,101.31,138.3339]
[1770000103900,149.55596935,101.38,101.28,465.19072842]
[1770000104104,11.31586935,101.37,101.28,457.4277]
[1770000105301,11.31586935,101.36,101.29,8.8944]
[1770000105616,373.71586935,101.38,101.31,138.3347]
[1770000105900,11.31699796,101.37,101.3,8.8931]
[1770000106701,11.31699796,101.37,101.31,8.8927]
[1770000107097,11.31699796,101.37,101.28,138.3677]
[1770000107405,11.31700224,101.36,101.28,138.3677]
[1770000108008,11.30621613,101.35,101.28,8.8948]
[1770000109006,20.19581613,101.35,101.28,8.8948]
[1770000109301,11.30621613,101.34,101.28,8.8948]
[1770000109708,11.28406835,101.36,101.29,8.8946]
[1770000110302,11.28406835,101.34,101.27,8.8958]
[1770000110702,11.28406835,101.33,101.25,138.4061]
[1770000110897,11.28406835,101.32,101.23,138.4406]
[1770000111508,20.17696835,101.31,101.22,737.5326101]
[1770000111708,11.28406835,101.31,101.22,599.0782101]
[1770000111909,11.28406835,101.31,101.21,138.459]
[1770000112102,11.28406835,101.31,101.2,146.23542842]
[1770000112103,11.28042615,101.3,101.2,146.23542842]
[1770000112306,138.3357,101.31,101.2,146.23542842]
[1770000112307,373.16042615,101.29,101.21,138.4687]
[1770000112507,373.16042615,101.29,101.22,138.4569]
[1770000113010,373.38042615,101.31,101.22,138.4569]
[1770000113303,373.38042615,101.31,101.24,138.4292]
[1770000113501,20.17182615,101.33,101.26,8.8972]
[1770000113702,11.28042615,101.33,101.26,8.8972]
[1770000114408,11.29005959,101.32,101.24,155.09042842]
[1770000114607,11.29005959,101.32,101.24,146.19222842]
[1770000114809,373.57005959,101.34,101.25,138.4154]
[1770000115806,11.32796775,101.33,101.25,138.4154]
[1770000116006,11.32796775,101.33,101.27,8.8963]
[1770000117311,11.32796775,101.33,101.26,138.4028]
[1770000117809,246.62,101.34,101.29,8.8946]
[1770000118308,246.62,101.34,101.27,138.3854]
[1770000118309,11.33464236,101.36,101.3,8.8937]
[1770000118510,11.33464236,101.36,101.28,7.76302842]
[1770000119510,20.22324236,101.36,101.29,8.8946]
[1770000120005,363.54,101.37,101.29,138.3569]
[1770000120213,11.35633658,101.38,101.29,138.3569]
[1770000120411,11.35633658,101.38,101.31,8.8928]
[1770000120611,138.2083,101.41,101.31,8.8928]
[1770000120612,11.35633658,101.41,101.32,284.38992842]
[1770000120812,11.35633658,101.41,101.31,138.3323]
[1770000121014,11.35633658,101.38,101.3,319.62]
[1770000121216,11.35633658,101.38,101.29,146.12482842]